[Event "FRA-ch Universities 2019"]
[Site "Paris"]
[Date "2019.02.03"]
[Round "9"]
[White "Graca, Robert"]
[Black "Cahen, Alexis"]
[Result "1-0"]
[ECO "A04"]
[WhiteElo "2270"]
[BlackElo "2109"]
[Annotator "NA"]
[PlyCount "49"]
[EventDate "2019.02.01"]
[EventType "swiss"]
[EventCountry "FRA"]
[SourceTitle "playchess.com"]
[Source "ChessBase"]
[SourceQuality "1"]
[TimeControl "900+5"]

1. Nf3 {[%emt 0:00:00]} c5 {[%emt 0:00:00]} 2. c4 {[%emt 0:00:00]} g6 {[%emt 0:00:10]} 3. d4 {[%emt 0:00:00]} cxd4 {[%emt 0:00:06]} 4. Nxd4 {[%emt 0:00:01]} Nc6 {[%emt 0:00:03]} 5. Nc2 {[%emt 0:00:11]} Bg7 {[%emt 0:00:21]} 6. g3 {[%emt 0:00:01]} Nf6 {[%emt 0:00:09]} 7. Bg2 {[%emt 0:00:02]} O-O {[%emt 0:00:07]} 8. O-O {[%emt 0:00:03]} d6 {[%emt 0:00:07]} 9. Nc3 {[%emt 0:00:04]} Be6 {[%emt 0:00:06]} 10. b3 {[%emt 0:00:00]} Qd7 {[%emt 0:00:38]} 11. Re1 {[%emt 0:01:00]} Rfd8 {[%emt 0:00:10]} 12. e4 {[%emt 0:00:26]} Nxe4 {[%emt 0:00:14]} 13. Nxe4 {[%emt 0:00:01]} Bxa1 {[%emt 0:00:05]} 14. Nxa1 {[%emt 0:00:01]} Ne5 {[%emt 0:00:47]} 15. Bb2 {[%emt 0:00:40]} Rac8 {[%emt 0:00:45]} 16. Nc2 {[%emt 0:02:03]} b5 {[%emt 0:01:45]} 17. f4 {[%emt 0:01:36]} d5 {[%emt 0:03:53]} 18. cxd5 {[%emt 0:01:19]} Qxd5 {[%emt 0:00:42]} 19. Nf6+ {[%emt 0:01:26]} exf6 {[%emt 0:00:02]} 20. Bxd5 {[%emt 0:00:01]} Rxd5 {[%emt 0:00:26]} 21. Nd4 {[%emt 0:02:08]} Bg4 {[%emt 0:00:26]} 22. Qa1 {[%emt 0:03:18]} Rxd4 {[%emt 0:03:05]} 23. Bxd4 {[%emt 0:00:04]} Nf3+ {[%emt 0:00:20]} 24. Kf2 {[%emt 0:00:00]} Rc2+ {[%emt 0:00:11]} 25. Ke3 {[%emt 0:00:53]} 1-0

[Event "FRA-ch Universities 2019"]
[Site "Paris"]
[Date "2019.02.03"]
[Round "9"]
[White "Dobrocmyslov, Artem"]
[Black "Viers, Emmanuel"]
[Result "1-0"]
[ECO "D02"]
[WhiteElo "2262"]
[BlackElo "2199"]
[Annotator "NA"]
[PlyCount "61"]
[EventDate "2019.02.01"]
[EventType "swiss"]
[EventCountry "FRA"]
[SourceTitle "playchess.com"]
[Source "ChessBase"]
[SourceQuality "1"]
[TimeControl "900+5"]

1. d4 {[%emt 0:00:00]} d5 {[%emt 0:00:00]} 2. Nf3 {[%emt 0:00:00]} e6 {[%emt 0:00:00]} 3. c4 {[%emt 0:00:02]} c6 {[%emt 0:00:00]} 4. Qc2 {[%emt 0:00:02]} Nf6 {[%emt 0:00:11]} 5. cxd5 {[%emt 0:00:04]} exd5 {[%emt 0:00:19]} 6. Nc3 {[%emt 0:00:03]} Be7 {[%emt 0:01:54]} 7. Bf4 {[%emt 0:00:02]} Nbd7 {[%emt 0:00:38]} 8. e3 {[%emt 0:00:03]} Nf8 {[%emt 0:00:50]} 9. h3 {[%emt 0:00:20]} Ne6 {[%emt 0:00:02]} 10. Bh2 {[%emt 0:00:02]} b6 {[%emt 0:00:27]} 11. Bd3 {[%emt 0:00:49]} O-O {[%emt 0:00:22]} 12. O-O {[%emt 0:00:38]} Re8 {[%emt 0:00:55]} 13. Rab1 {[%emt 0:00:25]} Bd6 {[%emt 0:01:47]} 14. Ne5 {[%emt 0:00:08]} Bb7 {[%emt 0:00:15]} 15. b4 {[%emt 0:00:16]} h6 {[%emt 0:00:17]} 16. f4 {[%emt 0:00:21]} Qe7 {[%emt 0:00:54]} 17. a3 {[%emt 0:01:10]} c5 {[%emt 0:00:13]} 18. bxc5 {[%emt 0:00:08]} bxc5 {[%emt 0:00:03]} 19. Nb5 {[%emt 0:01:58]} Bb8 {[%emt 0:00:18]} 20. Bf5 {[%emt 0:04:29]} a6 {[%emt 0:02:43]} 21. Bxe6 {[%emt 0:00:03]} fxe6 {[%emt 0:01:52]} 22. Nc3 {[%emt 0:00:07]} Ba7 {[%emt 0:00:25]} 23. Ng6 {[%emt 0:01:11]} Qd7 {[%emt 0:00:49]} 24. Ne5 {[%emt 0:01:27]} Qc7 {[%emt 0:00:05]} 25. Ne2 {[%emt 0:00:29]} Rac8 {[%emt 0:01:23]} 26. Qg6 {[%emt 0:00:09]} a5 {[%emt 0:00:12]} 27. f5 {[%emt 0:00:27]} Ba6 28. Ng4 Qe7 {[%emt 0:00:07]} 29. Nxh6+ {[%emt 0:00:27]} Kf8 {[%emt 0:00:16]} 30. Bd6 {[%emt 0:00:03]} Bxe2 {[%emt 0:00:05]} 31. Qf7# {[%emt 0:00:02]} 1-0

[Event "FRA-ch Universities 2019"]
[Site "Paris"]
[Date "2019.02.03"]
[Round "9"]
[White "Grezels, Florian"]
[Black "Lever, Erwan"]
[Result "1-0"]
[ECO "C41"]
[WhiteElo "2194"]
[BlackElo "2275"]
[Annotator "NA"]
[PlyCount "53"]
[EventDate "2019.02.01"]
[EventType "swiss"]
[EventCountry "FRA"]
[SourceTitle "playchess.com"]
[Source "ChessBase"]
[SourceQuality "1"]
[TimeControl "900+5"]

1. e4 {[%emt 0:00:00]} d6 {[%emt 0:00:24]} 2. d4 {[%emt 0:00:01]} Nf6 {[%emt 0:00:06]} 3. Nc3 {[%emt 0:00:04]} e5 {[%emt 0:00:01]} 4. Nf3 {[%emt 0:00:10]} Nbd7 {[%emt 0:00:07]} 5. g4 {[%emt 0:00:10]} Be7 {[%emt 0:00:50]} 6. g5 {[%emt 0:03:05]} Nh5 {[%emt 0:01:11]} 7. Be3 {[%emt 0:01:59]} Nf4 {[%emt 0:01:12]} 8. Qd2 {[%emt 0:00:25]} Bxg5 {[%emt 0:02:03]} 9. O-O-O {[%emt 0:00:35]} exd4 {[%emt 0:00:35]} 10. Nxd4 {[%emt 0:00:54]} Ne6 {[%emt 0:00:06]} 11. Nxe6 {[%emt 0:00:20]} Bxe3 {[%emt 0:00:08]} 12. Nxg7+ {[%emt 0:00:05]} Kf8 {[%emt 0:00:01]} 13. Qxe3 {[%emt 0:00:05]} Kxg7 {[%emt 0:00:02]} 14. Rg1+ {[%emt 0:01:26]} Kf8 {[%emt 0:00:01]} 15. Qh6+ {[%emt 0:01:11]} Ke8 {[%emt 0:00:06]} 16. Nd5 {[%emt 0:00:41]} c6 {[%emt 0:01:36]} 17. Qxd6 {[%emt 0:01:32]} cxd5 {[%emt 0:00:02]} 18. exd5 {[%emt 0:00:36]} Qf6 $18 {[%emt 0:00:26]} 19. Qc7 {[%emt 0:00:41]} Qb6 {[%emt 0:01:26]} 20. Re1+ {[%emt 0:00:16]} Kf8 {[%emt 0:00:01]} 21. Qg3 {[%emt 0:00:18]} Qh6+ {[%emt 0:00:45]} 22. Kb1 {[%emt 0:00:01]} Nc5 {[%emt 0:00:02]} 23. Qc7 {[%emt 0:00:17]} Ne6 {[%emt 0:01:59]} 24. Qd6+ {[%emt 0:00:05]} Ke8 {[%emt 0:00:04]} 25. Bb5+ {[%emt 0:00:03]} Bd7 {[%emt 0:00:03]} 26. Qxd7+ {[%emt 0:00:04]} Kf8 {[%emt 0:00:01]} 27. Qd6# 1-0

[Event "FRA-ch Universities 2019"]
[Site "Paris"]
[Date "2019.02.03"]
[Round "9"]
[White "Toure, Vasanth"]
[Black "Sochacki, Wojtek"]
[Result "0-1"]
[ECO "B51"]
[WhiteElo "2064"]
[BlackElo "2348"]
[Annotator "NA"]
[PlyCount "66"]
[EventDate "2019.02.01"]
[EventType "swiss"]
[EventCountry "FRA"]
[SourceTitle "playchess.com"]
[Source "ChessBase"]
[SourceQuality "1"]
[TimeControl "900+5"]

1. e4 {[%emt 0:00:06]} c5 {[%emt 0:00:00]} 2. Nf3 {[%emt 0:00:03]} d6 {[%emt 0:00:00]} 3. Bb5+ {[%emt 0:00:14]} Nd7 {[%emt 0:00:00]} 4. O-O {[%emt 0:00:03]} a6 {[%emt 0:00:00]} 5. Bxd7+ {[%emt 0:00:04]} Qxd7 {[%emt 0:00:01]} 6. c4 {[%emt 0:00:03] B51: Sicilian: Moscow Variation (3 Bb5+) without 3...Bd7} (6. d4 cxd4 7. Qxd4 e5 8. Qd3 f5 9. Nc3 Nf6 10. Bg5 fxe4 11. Nxe4 Nxe4 12. Qxe4 Qf5 13. Qd5 Qf7 14. Qa5 Bg4 15. Nd2 Rc8 16. Ne4 {½-½ (16) Oratovsky,M (2488)-Demuth,A (2527) Barcelona 2017}) 6... e5 {[%emt 0:00:33]} 7. d3 $146 {[%emt 0:00:27]} ({Predecessor:} 7. Nc3 Ne7 8. d3 g6 9. Bg5 Bg7 10. Bxe7 Qxe7 11. Nd5 Qd8 12. b4 O-O 13. bxc5 dxc5 {1-0 (25) Van der Veen,J (2059)-Wedda,D (1994) Hoogeveen 2016}) 7... Nf6 {[%emt 0:00:21]} 8. b4 {[%emt 0:00:00]} cxb4 {[%emt 0:00:22]} 9. a3 {[%emt 0:00:01]} bxa3 {[%emt 0:00:03]} 10. Bxa3 {[%emt 0:00:12]} Be7 {[%emt 0:00:02]} 11. Nc3 {[%emt 0:00:08]} O-O {[%emt 0:00:03]} 12. Qb3 {[%emt 0:00:44]} Rb8 {[%emt 0:00:04]} 13. Rab1 {[%emt 0:00:38]} b5 {[%emt 0:01:15]} 14. cxb5 {[%emt 0:00:39]} axb5 {[%emt 0:00:02]} 15. Qb4 {[%emt 0:01:10]} Re8 {[%emt 0:00:07]} 16. Qa5 {[%emt 0:00:31]} Bd8 {[%emt 0:02:41]} 17. Qb4 {[%emt 0:00:07]} Be7 {[%emt 0:00:29]} 18. Qa5 {[%emt 0:00:01]} Bd8 {[%emt 0:00:01]} 19. Qb4 {[%emt 0:00:01]} Rb6 {[%emt 0:00:15]} 20. Rfd1 {[%emt 0:00:46]} Be7 {[%emt 0:00:24]} 21. Qa5 {[%emt 0:00:33]} Ra6 {[%emt 0:00:06]} 22. Qb4 {[%emt 0:02:50]} d5 {[%emt 0:00:10]} 23. Nxe5 {[%emt 0:00:43]} Bxb4 {[%emt 0:00:11]} 24. Nxd7 {[%emt 0:00:03]} Bxc3 {[%emt 0:00:02]} 25. Nxf6+ {[%emt 0:00:15]} gxf6 {[%emt 0:00:05]} 26. Bc5 {[%emt 0:00:07]} dxe4 {[%emt 0:02:27]} 27. d4 {[%emt 0:00:04]} Bd7 {[%emt 0:00:51]} 28. Rdc1 $19 {[%emt 0:00:35]} Bd2 {[%emt 0:00:38]} 29. Rd1 {[%emt 0:00:04]} e3 {[%emt 0:00:09]} 30. fxe3 {[%emt 0:00:14]} Bxe3+ {[%emt 0:00:01]} 31. Kh1 {[%emt 0:00:02]} Ra2 {[%emt 0:00:46]} 32. Ra1 {[%emt 0:01:48]} Rxa1 {[%emt 0:00:06]} 33. Rxa1 {[%emt 0:00:01]} Bd2 {[%emt 0:00:02]} 0-1

[Event "FRA-ch Universities 2019"]
[Site "Paris"]
[Date "2019.02.03"]
[Round "9"]
[White "Bellaiche, Elise"]
[Black "Kern, Nicolas"]
[Result "0-1"]
[ECO "B22"]
[WhiteElo "2056"]
[BlackElo "2101"]
[Annotator "NA"]
[PlyCount "95"]
[EventDate "2019.02.01"]
[EventType "swiss"]
[EventCountry "FRA"]
[SourceTitle "playchess.com"]
[Source "ChessBase"]
[SourceQuality "1"]
[TimeControl "900+5"]

1. e4 {[%emt 0:00:00]} c5 {[%emt 0:00:00]} 2. c3 {[%emt 0:00:00]} Nf6 {[%emt 0:00:00]} 3. e5 {[%emt 0:00:00]} Nd5 {[%emt 0:00:01]} 4. d4 {[%emt 0:00:00]} cxd4 {[%emt 0:00:07]} 5. Nf3 {[%emt 0:00:10]} e6 {[%emt 0:00:02]} 6. cxd4 {[%emt 0:00:11]} b6 {[%emt 0:00:00]} 7. Bd3 {[%emt 0:00:33]} d6 {[%emt 0:00:07]} 8. O-O {[%emt 0:00:31]} Nd7 {[%emt 0:00:07]} 9. exd6 {[%emt 0:02:26]} Bxd6 {[%emt 0:00:13]} 10. Nc3 {[%emt 0:00:20]} Nxc3 $11 {[%emt 0:01:42]} 11. bxc3 {[%emt 0:00:01]} Bb7 {[%emt 0:00:05]} 12. Qe2 {[%emt 0:00:39]} Qc7 {[%emt 0:00:07]} 13. Bd2 {[%emt 0:00:30]} Rc8 {[%emt 0:00:17]} 14. h3 {[%emt 0:00:10]} Bd5 {[%emt 0:00:15]} 15. Rfc1 {[%emt 0:02:28]} Bc4 {[%emt 0:00:14]} 16. Ng5 {[%emt 0:01:08]} Nf6 {[%emt 0:00:28]} 17. Ne4 {[%emt 0:00:13]} Ba3 {[%emt 0:01:51]} 18. Re1 {[%emt 0:00:55]} Nd5 {[%emt 0:00:48]} 19. Bxc4 {[%emt 0:00:42]} Qxc4 {[%emt 0:00:02]} 20. Qg4 {[%emt 0:00:31]} Kf8 {[%emt 0:01:12]} 21. Qg3 {[%emt 0:00:24]} Qc7 {[%emt 0:01:10]} 22. Qf3 {[%emt 0:00:17]} Be7 {[%emt 0:01:02]} 23. Rac1 {[%emt 0:00:53]} Qc4 {[%emt 0:00:03]} 24. Bg5 {[%emt 0:00:39]} Ba3 {[%emt 0:00:59]} 25. Rc2 {[%emt 0:00:26]} h6 {[%emt 0:00:39]} 26. Bf4 {[%emt 0:00:27]} Be7 {[%emt 0:03:41]} 27. Bd6 {[%emt 0:00:30]} Rc6 {[%emt 0:00:37]} 28. Bxe7+ {[%emt 0:00:11]} Kxe7 {[%emt 0:00:14]} 29. Qg3 {[%emt 0:00:36]} g5 {[%emt 0:00:28]} 30. h4 {[%emt 0:00:28]} f6 {[%emt 0:00:29]} 31. Nd2 {[%emt 0:00:30]} Qa4 {[%emt 0:00:01]} 32. Rec1 {[%emt 0:00:14]} Nf4 {[%emt 0:00:08]} 33. Qe3 {[%emt 0:00:14]} Rhc8 {[%emt 0:00:10]} 34. c4 {[%emt 0:00:16]} Kf7 {[%emt 0:00:01]} 35. Qe4 {[%emt 0:00:12]} f5 {[%emt 0:00:21]} 36. Qe3 {[%emt 0:00:03]} Qa5 {[%emt 0:00:13]} 37. hxg5 {[%emt 0:00:07]} hxg5 38. g3 {[%emt 0:00:09]} Nh3+ {[%emt 0:00:03]} 39. Kg2 {[%emt 0:00:03]} Rh8 {[%emt 0:00:05]} 40. Rh1 {[%emt 0:00:05]} g4 {[%emt 0:00:09]} 41. Rcc1 {[%emt 0:00:07]} Qb4 {[%emt 0:00:06]} 42. d5 {[%emt 0:00:04]} exd5 {[%emt 0:00:07]} 43. cxd5 {[%emt 0:00:02]} Rxc1 {[%emt 0:00:00]} 44. Rxc1 {[%emt 0:00:03]} Qd6 {[%emt 0:00:01]} 45. Qd3 {[%emt 0:00:11]} f4 {[%emt 0:00:06]} 46. Qf5+ {[%emt 0:00:03]} Ke7 {[%emt 0:00:04]} 47. Re1+ {[%emt 0:00:02]} Kd8 {[%emt 0:00:02]} 48. Ne4 0-1

[Event "FRA-ch Universities 2019"]
[Site "Paris"]
[Date "2019.02.03"]
[Round "9"]
[White "Geronimi, Pierre-Francois"]
[Black "Brethes, Francois"]
[Result "1-0"]
[ECO "B54"]
[WhiteElo "2042"]
[BlackElo "2267"]
[Annotator "NA"]
[PlyCount "72"]
[EventDate "2019.02.01"]
[EventType "swiss"]
[EventCountry "FRA"]
[SourceTitle "playchess.com"]
[Source "ChessBase"]
[SourceQuality "1"]
[TimeControl "900+5"]

1. e4 {[%emt 0:00:00]} c5 {[%emt 0:00:00]} 2. Nf3 {[%emt 0:00:00]} d6 {[%emt 0:00:13]} 3. d4 {[%emt 0:00:00]} cxd4 {[%emt 0:00:02]} 4. Nxd4 {[%emt 0:00:01]} Nf6 {[%emt 0:00:01]} 5. Bd3 {[%emt 0:00:01]} Nc6 {[%emt 0:00:23]} 6. Nxc6 {[%emt 0:00:01]} bxc6 {[%emt 0:00:01]} 7. Nd2 {[%emt 0:00:01]} g6 {[%emt 0:00:47]} 8. O-O {[%emt 0:00:03]} Bg7 {[%emt 0:00:09]} 9. c3 {[%emt 0:00:01]} O-O {[%emt 0:00:08] B55: Sicilian: 2...d6 3 d4 cxd4 4 Nxd4 Nf6 5 f3} 10. a4 {[%emt 0:00:01]} (10. Nf3 Qc7 11. Bf4 e5 12. Bg3 Nh5 13. c4 Nxg3 14. hxg3 f5 15. c5 dxc5 16. Rc1 fxe4 17. Bxe4 {1-0 (39) Ristoja,S (2164)-Tuominen,R (2303) Finland 2016}) 10... d5 $146 {[%emt 0:00:52]} ({Predecessor:} 10... Rb8 11. b4 Qc7 12. Re1 Ng4 13. Bb2 a5 14. b5 d5 15. Nf3 dxe4 16. Rxe4 {0-1 (32) Schmeck,D (1179)-De la Pena Balbuena,I (1358) LSS email 2008}) 11. Qe2 {[%emt 0:00:03]} Nd7 {[%emt 0:00:11]} 12. Re1 {[%emt 0:00:32]} e5 {[%emt 0:00:12]} 13. c4 {[%emt 0:00:47]} d4 {[%emt 0:01:13]} 14. b4 {[%emt 0:00:30]} f5 {[%emt 0:01:15]} 15. a5 {[%emt 0:00:55]} f4 {[%emt 0:00:06]} 16. f3 {[%emt 0:00:10]} Qh4 {[%emt 0:00:40]} 17. Qf2 {[%emt 0:00:11]} Qh5 {[%emt 0:00:03]} 18. c5 {[%emt 0:00:14]} Nf6 {[%emt 0:00:08]} 19. Nc4 {[%emt 0:00:12]} Ne8 {[%emt 0:00:56]} 20. Qc2 {[%emt 0:01:12]} Bf6 {[%emt 0:00:24]} 21. Bd2 {[%emt 0:02:18]} Bh4 {[%emt 0:00:27]} 22. Rec1 {[%emt 0:00:02]} Bg3 {[%emt 0:04:33]} 23. h3 {[%emt 0:00:27]} Bxh3 $11 {[%emt 0:01:26]} 24. gxh3 {[%emt 0:00:02]} Qxh3 {[%emt 0:00:02]} 25. Be1 {[%emt 0:00:08]} Bxe1 {[%emt 0:00:50]} 26. Rxe1 {[%emt 0:00:01]} Qxf3 {[%emt 0:00:03]} 27. Nxe5 {[%emt 0:00:27]} Qh5 {[%emt 0:00:54]} 28. Bc4+ {[%emt 0:00:02]} Kg7 {[%emt 0:00:04]} 29. Nd3 {[%emt 0:01:19]} Nf6 {[%emt 0:00:40]} 30. Qh2 {[%emt 0:00:05]} Qg4+ {[%emt 0:00:14]} 31. Qg2 {[%emt 0:03:12]} Qxg2+ {[%emt 0:00:25]} 32. Kxg2 {[%emt 0:00:02]} Ng4 {[%emt 0:00:00]} 33. Be6 {[%emt 0:01:44]} Ne3+ {[%emt 0:00:14]} 34. Kf3 {[%emt 0:00:01]} g5 {[%emt 0:00:04]} 35. Rg1 {[%emt 0:00:04]} Kf6 {[%emt 0:00:07]} 36. Bg4 {[%emt 0:00:25]} Nxg4 1-0

[Event "FRA-ch Universities 2019"]
[Site "Paris"]
[Date "2019.02.03"]
[Round "9"]
[White "Brunier, Jules"]
[Black "Dumas, Charles"]
[Result "0-1"]
[ECO "B22"]
[WhiteElo "2015"]
[BlackElo "2218"]
[Annotator "NA"]
[PlyCount "144"]
[EventDate "2019.02.01"]
[EventType "swiss"]
[EventCountry "FRA"]
[SourceTitle "playchess.com"]
[Source "ChessBase"]
[SourceQuality "1"]
[TimeControl "900+5"]

1. e4 {[%emt 0:00:00]} c5 {[%emt 0:00:00]} 2. c3 {[%emt 0:00:13]} d5 {[%emt 0:00:00]} 3. exd5 {[%emt 0:00:06]} Qxd5 {[%emt 0:00:00]} 4. d4 {[%emt 0:00:09]} Nc6 {[%emt 0:00:03]} 5. Nf3 {[%emt 0:00:03]} cxd4 {[%emt 0:00:02]} 6. cxd4 {[%emt 0:00:17]} e5 {[%emt 0:00:01]} 7. Nc3 {[%emt 0:00:05]} Bb4 {[%emt 0:00:01]} 8. Be3 {[%emt 0:00:48]} exd4 {[%emt 0:02:00]} 9. Nxd4 {[%emt 0:00:17]} Nf6 {[%emt 0:00:10]} 10. Nxc6 {[%emt 0:01:15]} Qxc6 {[%emt 0:00:44]} 11. Qb3 {[%emt 0:00:53]} Bxc3+ {[%emt 0:00:26]} 12. bxc3 {[%emt 0:00:19]} O-O {[%emt 0:00:15]} 13. Bc4 {[%emt 0:00:56]} Bf5 {[%emt 0:00:47]} 14. O-O {[%emt 0:01:44]} Rac8 {[%emt 0:00:51]} 15. Bb5 {[%emt 0:02:02]} Qxc3 {[%emt 0:00:10]} 16. Qxc3 {[%emt 0:01:02]} Rxc3 {[%emt 0:00:02]} 17. Bxa7 {[%emt 0:00:01]} Rc2 {[%emt 0:00:09]} 18. a4 {[%emt 0:00:12]} Rd8 {[%emt 0:00:56]} 19. Rfe1 {[%emt 0:01:45]} Ne4 {[%emt 0:02:46]} 20. Rad1 {[%emt 0:00:49]} Rxd1 {[%emt 0:01:07]} 21. Rxd1 {[%emt 0:00:01]} h6 {[%emt 0:00:02]} 22. Bd3 {[%emt 0:00:17]} Ra2 {[%emt 0:00:06]} 23. f3 {[%emt 0:00:19]} Nc3 {[%emt 0:02:03]} 24. Rc1 {[%emt 0:02:10]} Bxd3 {[%emt 0:00:04]} 25. Rxc3 {[%emt 0:00:01]} Ba6 {[%emt 0:00:31]} 26. Rc8+ {[%emt 0:00:18]} Kh7 {[%emt 0:00:00]} 27. Rc7 {[%emt 0:00:01]} Kg6 {[%emt 0:00:06]} 28. Rd7 {[%emt 0:00:31]} Rxa4 {[%emt 0:00:06]} 29. Kf2 {[%emt 0:00:13]} Ra2+ {[%emt 0:00:27]} 30. Kg3 {[%emt 0:00:01]} Bf1 {[%emt 0:00:13]} 31. Bf2 {[%emt 0:00:02]} b5 {[%emt 0:00:27]} 32. Rd1 {[%emt 0:00:18]} Bc4 {[%emt 0:00:20]} 33. Bc5 {[%emt 0:00:04]} Rb2 {[%emt 0:00:12]} 34. Ba3 {[%emt 0:00:12]} Rb3 {[%emt 0:00:02]} 35. Bc5 {[%emt 0:00:01]} Be6 {[%emt 0:00:03]} 36. Rd4 {[%emt 0:00:04]} Rc3 {[%emt 0:00:17]} 37. Be7 {[%emt 0:00:08]} Rc7 {[%emt 0:00:19]} 38. Bb4 {[%emt 0:00:05]} Kh7 {[%emt 0:00:30]} 39. h4 {[%emt 0:00:03]} g5 {[%emt 0:00:20]} 40. hxg5 {[%emt 0:00:06]} hxg5 {[%emt 0:00:00]} 41. f4 {[%emt 0:00:00]} g4 {[%emt 0:00:23]} 42. Rd2 {[%emt 0:00:16]} Kg6 {[%emt 0:00:01]} 43. Bd6 {[%emt 0:00:04]} Rc3+ {[%emt 0:00:03]} 44. Kf2 {[%emt 0:00:04]} g3+ {[%emt 0:00:06]} 45. Ke1 {[%emt 0:00:16]} Bc4 {[%emt 0:00:05]} 46. Rb2 {[%emt 0:00:08]} Re3+ {[%emt 0:00:07]} 47. Kd1 {[%emt 0:00:00]} Rd3+ {[%emt 0:00:01]} 48. Rd2 {[%emt 0:00:01]} Rb3 {[%emt 0:00:11]} 49. Kc2 {[%emt 0:00:04]} Kf5 {[%emt 0:00:09]} 50. Be5 {[%emt 0:00:10]} Ra3 {[%emt 0:00:02]} 51. Bb2 {[%emt 0:00:09]} Ra2 {[%emt 0:00:13]} 52. Kc3 {[%emt 0:00:01]} Kxf4 {[%emt 0:00:09]} 53. Kd4 {[%emt 0:00:02]} Ra7 {[%emt 0:00:07]} 54. Kc5 {[%emt 0:00:03]} Re7 {[%emt 0:00:07]} 55. Kd6 {[%emt 0:00:03]} Re2 {[%emt 0:00:10]} 56. Bc1 {[%emt 0:00:15]} Rxd2+ {[%emt 0:00:19]} 57. Bxd2+ {[%emt 0:00:00]} Kg4 {[%emt 0:00:05]} 58. Ke5 {[%emt 0:00:04]} f5 {[%emt 0:00:06]} 59. Bf4 {[%emt 0:00:04]} Bf1 {[%emt 0:00:23]} 60. Bxg3 {[%emt 0:00:06]} Kxg3 {[%emt 0:00:02]} 61. Kxf5 {[%emt 0:00:01]} Kxg2 {[%emt 0:00:00]} 62. Ke4 {[%emt 0:00:00]} Bc4 {[%emt 0:00:01]} 63. Kd4 {[%emt 0:00:01]} Kf3 {[%emt 0:00:01]} 64. Kc3 {[%emt 0:00:00]} Ke4 {[%emt 0:00:01]} 65. Kb4 {[%emt 0:00:02]} Kd5 {[%emt 0:00:00]} 66. Kc3 {[%emt 0:00:01]} Kc5 {[%emt 0:00:01]} 67. Kc2 {[%emt 0:00:00]} Kd4 {[%emt 0:00:01]} 68. Kb2 {[%emt 0:00:01]} b4 {[%emt 0:00:01]} 69. Kb1 {[%emt 0:00:01]} Kc3 {[%emt 0:00:01]} 70. Ka1 {[%emt 0:00:01]} b3 {[%emt 0:00:03]} 71. Kb1 {[%emt 0:00:01]} Bd3+ {[%emt 0:00:01]} 72. Ka1 {[%emt 0:00:00]} b2+ {[%emt 0:00:00]} 0-1